bitfinex-derivatives/quotes_ETHF0:USTF0_20250708
["timestamp","ask_amount","ask_price","bid_price","bid_amount"]
[1751993524941,27.45411,2576.9,2576.8,8.35827698]
[1751993525346,26.678,2576.9,2576.8,8.35827698]
[1751993525550,27.45408,2576.9,2576.8,8.35827698]
[1751993526753,28.10308,2576.9,2576.8,7.37187698]
[1751993527446,1.42508,2576.9,2576.8,7.37187698]
[1751993527649,28.10108,2576.9,2576.8,7.37187698]
[1751993528651,27.45208,2576.9,2576.8,7.37187698]
[1751993528854,28.10108,2576.9,2576.8,7.37187698]
[1751993529348,28.10108,2576.9,2576.8,8.35827698]
[1751993529848,5.42446836,2577.6,2576.8,7.58220698]
[1751993530052,28.09683554,2577.4,2577.3,2.70590698]
[1751993530451,29.52176554,2577.4,2577.3,4.16396698]
[1751993530648,0.77599,2577.2,2577.1,3.2078]
[1751993530852,28.09899,2577.2,2577.1,3.2078]
[1751993531146,0.77602,2577.1,2577.0,0.77603]
[1751993531349,0.77605,2577.0,2576.9,1.44036]
[1751993531548,0.77605,2577.0,2576.9,0.6643]
[1751993531549,28.09905,2577.0,2576.9,0.6643]
[1751993531749,28.09905,2577.0,2576.6,0.9864]
[1751993531750,0.77614,2576.8,2576.7,0.7761]
[1751993532054,28.09914,2576.8,2576.7,2.1325]
[1751993532250,0.77614,2576.8,2576.7,2.1325]
[1751993532458,0.77609,2577.0,2576.9,0.77605]
[1751993532754,0.77609,2577.0,2576.7,5.04870698]
[1751993532755,0.77611,2576.9,2576.8,0.77609]
[1751993532950,1.42511,2576.9,2576.8,1.45819]
[1751993533358,0.77611,2576.9,2576.8,0.6821]
[1751993533654,0.77611,2576.9,2576.7,4.15632698]
[1751993533655,0.77611,2576.8,2576.7,0.6743]
[1751993533855,27.44911,2576.8,2576.7,1.3564]
[1751993534053,28.09811,2576.8,2576.7,1.3564]
[1751993535250,28.09811,2576.8,2576.7,2.13254]
[1751993535451,28.09811,2576.8,2576.7,4.83844698]
[1751993535651,27.44911,2576.8,2576.7,4.83844698]
[1751993536152,0.77611,2576.8,2576.7,5.82484698]
[1751993536360,0.77611,2576.9,2576.8,0.77607]
[1751993536553,0.649,2576.9,2576.8,1.45817]
[1751993536754,0.77607,2577.0,2576.9,0.77608]
[1751993536954,0.77607,2577.0,2576.9,5.15048698]
[1751993536955,27.44807,2577.0,2576.9,5.15048698]
[1751993537258,29.52029517,2577.0,2576.9,5.15048698]
[1751993537461,28.87129517,2577.0,2576.9,4.37440698]
[1751993537656,28.87129517,2577.0,2576.9,3.38800698]
[1751993538157,29.52029517,2577.0,2576.9,3.38800698]
[1751993538355,29.52029517,2577.0,2576.9,4.16408698]
[1751993538555,28.87129517,2577.0,2576.9,4.16408698]
[1751993538754,28.87129517,2577.0,2576.9,5.15048698]
[1751993538954,28.87129517,2577.0,2576.9,4.16408698]
[1751993539361,28.87129517,2577.0,2576.9,3.38800698]
[1751993539657,29.52029517,2577.0,2576.9,4.16408698]
[1751993540659,29.52029517,2577.0,2576.9,0.6821]
[1751993540856,0.77608,2576.9,2576.8,3.9839]
[1751993541051,0.77608,2576.9,2576.8,4.653]
[1751993541457,1.41028,2576.9,2576.8,4.653]
[1751993542357,2.8353396,2576.9,2576.8,4.653]
[1751993543062,2.8353396,2576.9,2576.8,3.8769]
[1751993543270,0.77611,2576.8,2576.7,1.45044]
[1751993543561,27.44411,2576.8,2576.7,2.11954]
[1751993543761,28.07831,2576.8,2576.7,2.11954]
[1751993545565,28.07831,2576.8,2576.7,4.82544698]
[1751993546067,28.07831,2576.8,2576.7,5.80794698]
[1751993546270,0.77607,2577.0,2576.9,0.77602]
[1751993546567,29.50238282,2577.0,2576.9,0.6691]
[1751993547268,0.77608,2576.9,2576.8,0.77609]
[1751993547470,2.83539282,2576.9,2576.8,0.6691]
[1751993547662,2.83539282,2576.9,2576.8,1.44521]
[1751993547864,2.83539282,2576.9,2576.7,3.38020698]
[1751993547865,0.77611,2576.8,2576.7,0.6743]
[1751993548070,29.50142282,2576.8,2576.7,0.6743]
[1751993548366,30.89992282,2576.8,2576.7,0.6743]
[1751993549063,30.89992282,2576.8,2576.7,1.3434]
[1751993550066,30.89992282,2576.8,2576.7,2.11954]
[1751993550964,0.77617,2576.6,2576.5,3.98398]
[1751993551166,27.44117,2576.6,2576.5,5.32668]
[1751993551468,27.44117,2576.6,2576.5,6.30918]
[1751993551669,28.07537,2576.6,2576.5,6.30918]
[1751993551971,29.50079914,2576.6,2576.5,6.30918]
[1751993553469,28.07537,2576.6,2576.5,6.30918]
[1751993553671,29.50029337,2576.6,2576.5,6.30918]
[1751993554169,29.50029337,2576.6,2576.5,5.32668]
[1751993554377,29.50029337,2576.6,2576.5,4.5505]
[1751993555263,29.50029337,2576.6,2576.5,5.3267]
[1751993556067,29.50029337,2576.6,2576.5,4.5505]
[1751993556271,29.50029337,2576.6,2576.5,1.3427]
[1751993558866,29.50029337,2576.6,2576.5,0.6736]
[1751993559869,28.86609337,2576.6,2576.5,0.6736]
[1751993560175,29.50029337,2576.6,2576.5,0.6736]
[1751993560471,29.50029337,2576.6,2576.5,1.3427]
[1751993560871,29.50029337,2576.6,2576.5,0.6736]
[1751993561072,30.45419337,2576.6,2576.5,0.6736]
[1751993561468,29.50029337,2576.6,2576.5,0.6736]
[1751993561664,0.77626,2576.3,2576.2,3.2078]
[1751993561973,27.43726,2576.3,2576.2,5.28719]
[1751993562575,5.14802,2576.9,2576.2,4.5109]
[1751993562874,0.77622,2576.5,2576.4,0.77619]
[1751993563071,5.14802,2576.9,2576.3,3.33771]
[1751993563275,0.77618,2576.7,2576.6,0.77614]
[1751993563470,2.19996223,2576.7,2576.6,0.77614]
[1751993563875,28.86096223,2576.7,2576.6,3.48204698]
[1751993564070,28.86091046,2576.7,2576.6,3.48204698]
[1751993564573,29.49511046,2576.7,2576.6,3.48204698]
[1751993564773,28.86091046,2576.7,2576.6,3.48204698]
[1751993564975,29.49511046,2576.7,2576.6,0.77614]
[1751993565175,28.86091046,2576.7,2576.6,0.77614]
[1751993565377,29.49511046,2576.7,2576.6,1.44524]
[1751993566074,29.49511046,2576.7,2576.6,0.6691]
[1751993566278,0.77617,2576.6,2576.5,0.77619]
[1751993566475,0.77617,2576.6,2576.5,1.44529]
[1751993567075,1.41037,2576.6,2576.5,1.44529]
[1751993567275,0.77617,2576.6,2576.5,1.44529]
[1751993567477,1.41037,2576.6,2576.5,0.6691]
[1751993567871,26.658,2576.6,2576.5,4.8594]
[1751993568071,27.43417,2576.6,2576.5,5.63558]
[1751993568476,27.43417,2576.6,2576.5,6.97408]
[1751993568974,4.26322891,2577.1,2576.6,1.94044]
[1751993569176,1.4242303,2577.0,2576.9,0.77608]
[1751993569373,1.4242303,2577.0,2576.9,7.67228698]
[1751993569675,1.4242303,2577.0,2576.9,8.34138698]
[1751993570874,1.4242303,2577.0,2576.9,13.34138698]
[1751993571274,1.4242303,2577.0,2576.9,8.34138698]
[1751993571878,0.6518,2577.0,2576.6,6.65885052]
[1751993572083,1.42785,2577.0,2576.9,0.6837]
[1751993572280,28.08285,2577.0,2576.9,0.6837]
[1751993572679,0.77611,2576.8,2576.7,3.45105052]
[1751993572879,28.08291,2576.8,2576.7,3.45105052]
[1751993573081,0.77614,2576.7,2576.6,6.65885052]
[1751993573277,0.77614,2576.7,2576.6,3.45105052]
[1751993573583,0.77614,2576.7,2576.6,0.6837]
[1751993573882,0.77617,2576.6,2576.5,3.45105052]
[1751993574083,27.43017,2576.6,2576.5,1.4599]
[1751993574583,28.08197,2576.6,2576.5,1.4599]
[1751993575282,28.08197,2576.6,2576.5,0.6837]
[1751993575473,28.08197,2576.6,2576.5,1.4599]
[1751993575783,28.08197,2576.6,2576.5,0.6837]
[1751993576289,0.7762,2576.5,2576.4,0.77621]
[1751993576588,0.77622,2576.5,2576.4,1.45991]
[1751993576986,0.6518,2576.5,2576.4,0.6837]
[1751993577691,0.6518,2576.5,2576.4,1.45993]
[1751993577889,26.654,2576.6,2576.5,0.7762]
[1751993578194,0.77613,2576.8,2576.7,0.77611]
[1751993578393,28.85158482,2576.8,2576.7,1.45981]
[1751993578591,29.50338482,2576.8,2576.7,1.45981]
[1751993578789,28.85158482,2576.8,2576.7,1.45981]
[1751993578990,28.07545482,2576.8,2576.7,1.45981]
[1751993579289,28.72725482,2576.8,2576.7,1.45981]
[1751993579484,29.50336482,2576.8,2576.7,0.6837]
[1751993579682,0.77614,2576.7,2576.6,0.77615]
[1751993579882,0.6518,2576.7,2576.6,1.45985]
[1751993580292,2.85162469,2576.7,2576.6,1.45985]
[1751993580487,0.77617,2576.6,2576.5,0.6565]
[1751993580689,28.07997,2576.6,2576.5,1.3402]
[1751993580987,27.42817,2576.6,2576.5,2.1164]
[1751993581192,28.07997,2576.6,2576.5,2.1164]
[1751993581488,29.50370409,2576.6,2576.5,2.1164]
[1751993581687,28.85190409,2576.6,2576.5,2.1164]
[1751993581889,28.07573409,2576.6,2576.5,3.1276]
[1751993582089,29.50370409,2576.6,2576.5,0.6837]
[1751993583296,28.07997,2576.6,2576.5,0.6837]
[1751993583792,29.50370249,2576.6,2576.5,0.6837]
[1751993585291,29.50370249,2576.6,2576.5,1.4599]
[1751993585798,28.85190249,2576.6,2576.5,1.4599]
[1751993586094,29.50370249,2576.6,2576.5,1.4599]
[1751993586887,28.85190249,2576.6,2576.5,1.4599]
[1751993587096,29.50370249,2576.6,2576.5,1.4599]
[1751993588000,31.43343947,2576.6,2576.3,3.8505]
[1751993588201,0.77623,2576.4,2576.3,3.98404]
[1751993588496,28.07903,2576.4,2576.3,3.8915]
[1751993588700,27.42723,2576.4,2576.3,3.8915]
[1751993589194,27.42723,2576.4,2576.3,4.66776]
[1751993589389,28.07903,2576.4,2576.3,0.6837]
[1751993589594,27.42723,2576.4,2576.3,0.6837]
[1751993589792,28.07903,2576.4,2576.3,0.6837]
[1751993590197,28.07903,2576.4,2576.3,1.45996]
[1751993591194,28.07903,2576.4,2576.3,0.6837]
[1751993591700,0.77626,2576.3,2576.2,1.43198]
[1751993592097,0.77626,2576.3,2576.2,2.11568]
[1751993592398,27.42726,2576.3,2576.2,2.11568]
[1751993592799,26.651,2576.4,2576.3,0.77624]
[1751993593096,28.07906,2576.4,2576.3,3.48214698]
[1751993593296,28.07906,2576.4,2576.3,4.16584698]
[1751993593996,0.77626,2576.3,2576.2,0.6557]
[1751993594298,0.77638,2575.9,2575.8,3.45105052]
[1751993594494,27.42638,2575.9,2575.8,4.82725052]
[1751993594692,27.42638,2575.9,2575.8,1.3762]
[1751993595094,27.42638,2575.9,2575.8,2.15261]
[1751993595799,27.42638,2575.9,2575.8,1.3762]
[1751993595995,0.77638,2576.0,2575.9,0.77636]
[1751993596204,0.77638,2576.0,2575.9,3.48226698]
[1751993596395,27.42838,2576.0,2575.9,3.48226698]
[1751993597201,28.08018,2576.0,2575.9,3.48226698]
[1751993597402,27.42838,2576.0,2575.9,3.48226698]
[1751993597603,0.77635,2576.1,2576.0,0.77631]
[1751993597803,27.42835,2576.1,2576.0,4.49341698]
[1751993598201,0.77632,2576.2,2576.1,0.77629]
[1751993598398,0.77629,2576.3,2576.2,0.77627]
[1751993598598,27.42829,2576.3,2576.2,2.47117]
[1751993599300,0.77625,2576.4,2576.3,0.77623]
[1751993599508,55.908,2576.5,2576.4,2.3323]
[1751993599698,83.97329381,2576.5,2576.4,2.3323]
[1751993599892,83.97329381,2576.5,2576.4,5.03820698]
[1751993600506,84.74952381,2576.5,2576.4,5.81443698]
[1751993601003,83.33623,2576.5,2576.4,5.81443698]
[1751993601496,27.42823,2576.5,2576.4,5.81443698]
[1751993601700,27.42823,2576.5,2576.4,5.03820698]
[1751993601904,27.42823,2576.5,2576.4,4.02700698]
[1751993602405,28.08823,2576.5,2576.4,4.02700698]
[1751993602605,27.42823,2576.5,2576.4,1.3211]
[1751993603201,28.08823,2576.5,2576.4,1.3211]
[1751993603506,28.08823,2576.5,2576.4,0.6374]
[1751993603704,0.77629,2576.3,2576.2,0.77626]
[1751993603901,27.42729,2576.3,2576.2,2.10736]
[1751993604103,26.651,2576.3,2576.2,5.78336698]
[1751993604910,27.42726,2576.3,2576.2,5.78336698]
[1751993605106,28.08726,2576.3,2576.2,5.78336698]
[1751993606605,28.08726,2576.3,2576.2,5.00710698]
[1751993606805,28.08726,2576.3,2576.2,4.03700698]
[1751993607103,28.08726,2576.3,2576.2,4.81329698]
[1751993607708,28.08726,2576.3,2576.2,5.78339698]
[1751993608609,28.08726,2576.3,2576.2,4.81329698]
[1751993608908,28.08726,2576.3,2576.2,2.10739]
[1751993609410,28.08726,2576.3,2576.2,0.6694]
[1751993609612,1.94086,2576.1,2575.7,6.65885052]
[1751993609906,0.77641,2575.8,2575.7,4.64594]
[1751993610210,28.08641,2575.8,2575.7,4.64594]
[1751993610405,28.08641,2575.8,2575.7,7.35184698]
[1751993610709,28.08641,2575.8,2575.7,4.14404698]
[1751993611211,28.08641,2575.8,2575.7,3.36760698]
[1751993611407,28.08641,2575.8,2575.7,0.6617]
[1751993611612,0.77647,2575.6,2575.5,0.6653]
[1751993611811,27.42747,2575.6,2575.5,1.327]
[1751993612212,27.42747,2575.6,2575.5,2.1035]
[1751993613508,28.08747,2575.6,2575.5,2.1035]
[1751993614609,0.66,2575.6,2575.5,2.1035]
[1751993614809,27.312,2575.6,2575.5,3.4586]
[1751993615106,3.2078,2576.0,2575.9,0.77638]
[1751993615107,3.98417,2576.0,2575.9,0.77638]
[1751993615307,30.63617,2576.0,2575.9,3.48228698]
[1751993615506,31.29617,2576.0,2575.9,3.48228698]
[1751993615710,30.63617,2576.0,2575.9,3.48228698]
[1751993616013,29.8598,2576.0,2575.9,3.48228698]
[1751993616209,26.652,2576.0,2575.9,3.48228698]
[1751993616610,27.42835,2576.0,2575.9,3.48228698]
[1751993616809,27.42835,2576.0,2575.9,5.11408698]
[1751993617410,0.77638,2575.9,2575.8,3.8593]
[1751993617610,1.43638,2575.9,2575.8,4.521]
[1751993617909,1.43638,2575.9,2575.8,3.8593]
[1751993618111,2.76688,2575.9,2575.8,3.8593]
[1751993618510,2.10688,2575.9,2575.8,4.63571]
[1751993618712,2.76688,2575.9,2575.8,4.521]
[1751993618914,2.76688,2575.9,2575.8,3.2078]
[1751993619109,0.77647,2575.6,2575.5,3.45105052]
[1751993619308,0.7765,2575.5,2575.4,0.77652]
[1751993619509,1.4365,2575.5,2575.4,1.43822]
[1751993620211,0.77649,2575.6,2575.5,0.7765]
[1751993620415,27.42849,2575.6,2575.5,4.14410698]
[1751993620613,28.08849,2575.6,2575.5,4.83280698]
[1751993620811,27.42849,2575.6,2575.5,4.83280698]
[1751993621013,28.08849,2575.6,2575.5,4.83280698]
[1751993621218,1.43649,2575.6,2575.5,4.83280698]
[1751993621515,28.08849,2575.6,2575.5,5.80290698]
[1751993622720,28.08849,2575.6,2575.5,4.83280698]
[1751993624020,28.08847,2575.6,2575.5,4.83280698]
[1751993624216,28.08847,2575.6,2575.5,5.80290698]
[1751993625222,28.08847,2575.6,2575.5,4.83280698]
[1751993627425,27.312,2575.6,2575.5,4.83280698]
[1751993627624,27.312,2575.6,2575.5,5.80290698]
[1751993627820,28.08846,2575.6,2575.5,5.80290698]
[1751993628620,27.42846,2575.6,2575.5,5.80290698]
[1751993629022,28.08846,2575.6,2575.5,5.80290698]
[1751993629724,27.312,2575.6,2575.5,5.80290698]
[1751993629924,28.0884,2575.6,2575.5,5.80290698]
[1751993630330,1.4364,2575.6,2575.5,4.83280698]
[1751993630519,28.0894,2575.6,2575.5,4.83280698]
[1751993631628,28.0894,2575.6,2575.5,5.80290698]
[1751993633426,28.0894,2575.6,2575.5,2.1269]
[1751993634726,0.77643,2575.5,2575.4,3.2078]
[1751993634927,2.10493,2575.5,2575.4,3.2078]
[1751993636031,2.10493,2575.5,2575.4,6.59540698]
[1751993636433,2.10493,2575.5,2575.4,3.8895]
[1751993638434,2.73993,2575.5,2575.4,3.2078]
[1751993639230,4.16418774,2575.5,2575.4,3.2078]
[1751993640338,4.16418774,2575.5,2575.4,0.6817]
[1751993640532,2.83568774,2575.5,2575.4,2.46336]
[1751993640836,27.42843,2575.5,2575.4,6.33046]
[1751993641037,28.85336053,2575.5,2575.4,6.33046]
[1751993641331,28.06343,2575.5,2575.4,6.33046]
[1751993642136,27.42843,2575.5,2575.4,6.33046]
[1751993646142,27.42843,2575.5,2575.4,7.67896]
[1751993646643,26.652,2575.5,2575.4,7.67896]
[1751993646841,27.42843,2575.5,2575.4,7.67896]
[1751993647341,27.42743,2575.5,2575.4,7.67896]
[1751993651046,28.06243,2575.5,2575.4,7.67896]
[1751993651252,27.42743,2575.5,2575.4,7.67896]
[1751993651450,26.651,2575.5,2575.4,7.67896]
[1751993651753,27.42743,2575.5,2575.4,7.67896]
[1751993653255,0.77643,2575.6,2575.5,0.77638]
[1751993653450,0.77643,2575.6,2575.5,5.16918698]
[1751993653650,27.42539,2575.7,2575.6,0.7764]
[1751993653853,27.42435,2575.8,2575.7,0.77637]
[1751993654053,28.85014492,2575.8,2575.7,6.69007698]
[1751993654553,28.85014492,2575.8,2575.7,7.34947698]
[1751993654752,29.48514492,2575.8,2575.7,7.34947698]
[1751993655153,28.85014492,2575.8,2575.7,7.34947698]
[1751993655355,29.48514492,2575.8,2575.7,7.34947698]
[1751993655554,28.85014492,2575.8,2575.7,7.34947698]
[1751993655959,29.48514492,2575.8,2575.7,7.34947698]
[1751993656560,2.83714492,2575.8,2575.7,7.34947698]
[1751993656758,29.48414492,2575.8,2575.7,7.34947698]
[1751993657756,29.48414492,2575.8,2575.7,5.32527]
[1751993658356,0.635,2575.8,2575.7,5.32527]
[1751993658657,0.77632,2576.0,2575.9,0.77627]
[1751993658850,27.42232,2576.0,2575.9,3.48217698]
[1751993659058,28.8473338,2576.0,2575.9,4.16387698]
[1751993659249,29.4823338,2576.0,2575.9,5.16907698]
[1751993659457,28.8473338,2576.0,2575.9,5.16907698]
[1751993659860,29.4823338,2576.0,2575.9,5.16907698]
[1751993660160,29.4823338,2576.0,2575.9,3.48217698]
[1751993660361,28.8473338,2576.0,2575.9,5.16857698]
[1751993660552,29.5470338,2576.0,2575.9,5.16857698]
[1751993661153,2.2013338,2576.0,2575.9,5.16857698]
[1751993661360,28.0700138,2576.0,2575.9,5.16857698]
[1751993661962,27.42128,2576.0,2575.9,5.16857698]
[1751993662157,28.12098,2576.0,2575.9,5.16857698]
[1751993662358,28.11998,2576.0,2575.9,0.6812]
[1751993662562,28.11998,2576.0,2575.9,1.45751]
[1751993663262,28.11998,2576.0,2575.9,0.6812]
[1751993664665,28.11998,2576.0,2575.9,1.45751]
[1751993664854,28.11998,2576.0,2575.9,0.6812]
[1751993665161,28.11998,2576.0,2575.9,1.45751]
[1751993665859,28.11998,2576.0,2575.9,2.47731]
[1751993666963,28.11798,2576.0,2575.9,2.47731]
[1751993668960,27.41828,2576.0,2575.9,2.47731]
[1751993669164,28.11798,2576.0,2575.9,2.47731]
[1751993670063,1.47598,2576.0,2575.9,2.47731]
[1751993670266,27.3407,2576.0,2575.9,3.11821]
[1751993670563,0.77623,2576.3,2576.2,0.77618]
[1751993670766,1.42267146,2576.4,2576.2,7.61470698]
[1751993670960,26.64,2576.4,2576.3,1.79599]
[1751993671264,28.06250727,2576.4,2576.3,2.47719]
[1751993672367,28.83866727,2576.4,2576.3,2.47719]
[1751993672961,29.53836727,2576.4,2576.3,2.47719]
[1751993673268,28.83866727,2576.4,2576.3,2.47719]
[1751993673460,28.06150727,2576.4,2576.3,2.47719]
[1751993674364,28.83766727,2576.4,2576.3,2.47719]
[1751993675067,29.53736727,2576.4,2576.3,2.47719]
[1751993675267,28.83766727,2576.4,2576.3,2.47719]
[1751993675567,29.53736727,2576.4,2576.3,2.47719]
[1751993675767,29.53736727,2576.4,2576.3,0.77619]
[1751993675969,29.53736727,2576.4,2576.3,1.45739]
[1751993676468,29.53736727,2576.4,2576.3,2.47719]
[1751993676967,1.42250727,2576.4,2576.3,2.47719]
[1751993677363,27.41214,2576.5,2576.4,0.77616]
[1751993677564,27.41214,2576.5,2576.4,4.16326698]
[1751993677758,27.41214,2576.5,2576.4,5.18306698]
[1751993678164,27.41214,2576.5,2576.4,5.42380376]
[1751993678565,26.636,2576.5,2576.4,5.42380376]
[1751993678860,27.41213,2576.5,2576.4,5.42380376]
[1751993679065,27.41213,2576.5,2576.4,5.42370187]
[1751993680068,0.77613,2576.5,2576.4,5.42370187]
[1751993680264,27.41012,2576.6,2576.5,0.77613]
[1751993680465,28.83346758,2576.6,2576.5,1.01676489]
[1751993680664,28.83346758,2576.6,2576.5,1.69796489]
[1751993680864,28.83346758,2576.6,2576.5,2.71776489]
[1751993681369,29.53316758,2576.6,2576.5,2.71776489]
[1751993681570,28.10982,2576.6,2576.5,2.71776489]
[1751993681871,28.10982,2576.6,2576.5,5.92556489]
[1751993685074,28.10982,2576.6,2576.5,5.14943489]
[1751993685770,28.10982,2576.6,2576.5,5.92556489]
[1751993686172,28.10982,2576.6,2576.5,4.90576489]
[1751993686569,28.10982,2576.6,2576.5,5.92556489]
[1751993688077,1.47582,2576.6,2576.5,5.92556489]
[1751993688278,28.10582,2576.6,2576.5,5.92556489]
[1751993688473,27.40612,2576.6,2576.5,3.44843489]
[1751993688673,27.40612,2576.6,2576.5,4.12963489]
[1751993688875,28.10582,2576.6,2576.5,5.92556489]
[1751993690576,28.10582,2576.6,2576.5,6.56636489]
[1751993691479,28.10582,2576.6,2576.5,6.56681605]
[1751993691780,28.10582,2576.6,2576.5,6.56681667]
[1751993692978,1.4758,2576.6,2576.5,6.56681667]
[1751993693178,27.40307,2576.8,2576.7,0.77602]
[1751993693378,1.42299602,2576.8,2576.7,5.36741365]
[1751993693580,2.19903602,2576.8,2576.7,6.68611365]
[1751993693878,2.19903602,2576.8,2576.7,6.68618606]
[1751993694381,0.77604,2576.8,2576.7,6.68618606]
[1751993696580,0.77604,2576.8,2576.7,6.69204192]
[1751993696784,0.77603,2577.0,2576.9,0.77598]
[1751993696984,0.77603,2577.0,2576.9,8.58110192]
[1751993696985,27.40103,2577.0,2576.9,8.58110192]
[1751993697183,28.82381164,2577.0,2576.9,8.58110192]
[1751993697679,28.82281164,2577.0,2576.9,8.58110192]
[1751993697885,0.77596,2577.2,2577.1,0.77592]
[1751993698186,2.08207608,2577.2,2577.1,4.37874192]
[1751993698385,1.42267608,2577.2,2577.1,4.37874192]
[1751993698987,1.42267608,2577.2,2577.1,6.65804192]
[1751993699183,3.09894891,2577.6,2577.5,0.77583]
[1751993699383,27.39881,2577.6,2577.5,8.33393698]
[1751993699589,27.39881,2577.6,2577.5,8.57802248]
[1751993699784,0.77579,2577.7,2577.6,0.77577]
[1751993699979,0.77579,2577.7,2577.6,2.42017]
[1751993700188,0.77579,2577.7,2577.6,1.88848017]
[1751993700483,1.43519,2577.7,2577.6,4.59438715]
[1751993701083,0.6594,2577.7,2577.6,5.37018715]
[1751993701279,0.77577,2577.7,2577.6,5.37018715]
[1751993701686,1.43517,2577.7,2577.6,5.37018715]
[1751993702488,0.77576,2577.8,2577.7,0.77573]
[1751993702688,0.7757,2578.0,2577.9,0.77568]
[1751993702891,0.7757,2578.0,2577.9,7.58336715]
[1751993703197,0.7757,2578.0,2577.9,8.57786715]
[1751993703385,1.4351,2578.0,2577.9,8.57786715]
[1751993703883,1.4351,2578.0,2577.9,0.24408017]
[1751993704091,6.37490698,2578.0,2577.9,0.24408017]
[1751993704391,0.77577,2577.7,2577.6,5.91370698]
[1751993704590,1.43517,2577.7,2577.6,7.58424955]
[1751993704790,0.77572,2577.9,2577.8,0.77574]
[1751993705088,0.77572,2577.9,2577.8,5.37088955]
[1751993706690,0.77569,2578.0,2577.9,0.77568]
[1751993706892,27.38967,2578.1,2578.0,1.42558]
[1751993707189,27.38967,2578.1,2578.0,2.66492257]
[1751993707391,0.77567,2578.1,2578.0,2.66492257]
[1751993708688,1.43507,2578.1,2578.0,2.66492257]
[1751993709089,0.6594,2578.1,2578.0,2.66492257]
[1751993709388,1.43505,2578.1,2578.0,2.66492257]
[1751993709589,1.43505,2578.1,2578.0,1.88924257]
[1751993709789,1.43505,2578.1,2578.0,4.59514955]
[1751993709989,1.43505,2578.1,2578.0,0.24484257]
[1751993710892,0.77565,2578.1,2578.0,0.24484257]
[1751993711093,1.43505,2578.1,2578.0,0.24484257]
[1751993712094,28.04305,2578.1,2578.0,0.24484257]
[1751993713000,28.04305,2578.1,2578.0,0.89474257]
[1751993713293,27.38365,2578.1,2578.0,0.89549402]
[1751993713794,28.04305,2578.1,2578.0,0.89549402]
[1751993715290,28.99535,2578.1,2578.0,0.24559402]
[1751993715596,0.77577,2577.7,2577.6,3.2078]
[1751993715791,28.04117,2577.7,2577.6,3.8577]
[1751993716391,28.04117,2577.7,2577.6,3.2078]
[1751993716592,30.15717,2577.7,2577.3,3.98369]
[1751993716786,0.77586,2577.4,2577.3,3.98369]
[1751993716986,1.43526,2577.4,2577.3,3.2078]
[1751993717391,2.38756,2577.4,2577.3,3.2078]
[1751993717593,6.47496698,2577.4,2577.3,3.2078]
[1751993717793,3.76906,2577.4,2577.3,3.2078]
[1751993717995,2.81676,2577.4,2577.3,3.2078]
[1751993718701,0.77592,2577.2,2577.1,3.48184698]
[1751993718896,27.37992,2577.2,2577.1,4.13174698]
[1751993719193,28.03932,2577.2,2577.1,3.35580698]
[1751993719397,0.77598,2577.0,2576.9,4.61939]
[1751993719598,0.77598,2577.0,2576.9,7.97519698]
[1751993719794,1.43538,2577.0,2576.9,7.97519698]
[1751993720097,1.43538,2577.0,2576.9,3.8434]
[1751993720098,28.04138,2577.0,2576.9,3.8434]
[1751993720701,28.04138,2577.0,2576.9,4.4933]
[1751993720900,28.04138,2577.0,2576.9,4.5104]
[1751993721393,28.04138,2577.0,2576.9,5.28641]
[1751993721796,28.04138,2577.0,2576.9,4.5104]
[1751993721996,28.04138,2577.0,2576.9,5.28641]
[1751993722998,28.04138,2577.0,2576.9,7.99231698]
[1751993723599,28.04138,2577.0,2576.9,8.96281698]
[1751993723907,28.04138,2577.0,2576.9,7.99231698]
[1751993724498,28.04138,2577.0,2576.9,7.21630698]
[1751993725197,28.99418,2577.0,2576.9,3.2078]
[1751993725391,28.04138,2577.0,2576.9,3.2078]
[1751993727404,28.04138,2577.0,2576.9,4.89168414]
[1751993728896,28.04738,2577.0,2576.9,4.11567414]
[1751993729102,27.38198,2577.0,2576.9,4.89168414]
[1751993729602,0.6654,2577.0,2576.9,4.89168414]
[1751993729797,0.77594,2577.2,2577.1,0.77593]
[1751993730005,28.04834,2577.2,2577.1,2.65430414]
[1751993730205,27.38294,2577.2,2577.1,2.65430414]
[1751993730398,0.6654,2577.2,2577.1,2.65430414]
[1751993730603,1.3582,2577.6,2577.5,0.77583]
[1751993730604,0.77584,2577.6,2577.5,0.77583]
[1751993730801,3.2078,2577.7,2577.6,0.7758]
[1751993731001,28.01954792,2577.7,2577.6,2.65417414]
[1751993731306,1.41254792,2577.7,2577.6,2.65417414]
[1751993731606,26.607,2577.8,2577.7,0.77577]
[1751993731902,27.38274,2577.8,2577.7,2.65414414]
[1751993732103,26.607,2577.8,2577.7,2.65414414]
[1751993732304,27.2724,2577.8,2577.7,2.65414414]
[1751993732800,28.04814,2577.8,2577.7,2.65414414]
[1751993733204,28.04814,2577.8,2577.7,1.68364414]
[1751993733406,28.04814,2577.8,2577.7,4.38955112]
[1751993733600,1.93951,2577.6,2576.9,3.45105052]
[1751993733796,1.93951,2577.6,2576.3,5.75624921]
[1751993733797,0.77601,2576.9,2576.8,3.45105052]
[1751993734002,26.609,2576.9,2576.6,0.77609]
[1751993734205,0.77616,2576.4,2576.3,4.61747]
[1751993734506,27.38716,2576.4,2576.3,4.5083]
[1751993735307,30.09306698,2576.4,2576.3,3.8413]
[1751993735500,0.77628,2576.0,2575.9,3.2078]
[1751993735700,27.01271008,2576.0,2575.9,3.2078]
[1751993736006,27.01271008,2576.0,2575.9,3.8748]
[1751993737202,27.67811008,2576.0,2575.9,3.2078]
[1751993737404,27.01271008,2576.0,2575.9,3.8748]
[1751993737599,27.67711008,2576.0,2575.9,3.8748]
[1751993738203,27.2794,2576.0,2575.9,4.65111]
[1751993738608,27.39028,2576.0,2575.9,3.98411]
[1751993738802,0.7762,2576.3,2575.9,4.8453]
[1751993739007,0.77615,2576.5,2576.4,0.77616]
[1751993739204,27.41613,2576.5,2576.4,0.667]
[1751993739410,0.6654,2576.5,2576.4,1.44316]